fUSD/lending_fUSD_20240331
["ID","MTS","AMOUNT","RATE_DAILY","PERIOD"]
[321063273,1711847976910,-500.0,0.00041369,4]
[321063274,1711847976938,-500.0,0.00041369,4]
[321063275,1711847976966,-500.0,0.00041369,4]
[321063276,1711847976993,-500.0,0.00041369,4]
[321063277,1711847977021,-507.68,0.00041369,4]
[321063278,1711847977051,-240.78843964,0.00041369,4]
[321063279,1711847980903,-259.21156036,0.00041369,4]
[321063280,1711847980912,-28.82129263,0.00041369,4]
[321063281,1711847993582,-500.0,0.00041095,4]
[321063282,1711847993609,-500.0,0.00041095,4]
[321063283,1711847993634,-500.0,0.00041095,4]
[321063284,1711847993660,-500.0,0.00041268,4]
[321063285,1711847993686,-1114.2,0.00041268,4]
[321063286,1711847993712,-1206.82,0.00041299,4]
[321063287,1711847993738,-1834.93,0.00041299,4]
[321063288,1711847993768,-512.45511828,0.00041367,4]
[321063289,1711847993794,-7924.04,0.00041367,4]
[321063290,1711847993820,-500.0,0.00041367,4]
[321063291,1711847993846,-471.17870737,0.00041369,4]
[321063292,1711847993874,-500.0,0.00041369,4]
[321063293,1711847993901,-500.0,0.00041369,4]
[321063294,1711847993927,-500.0,0.00041369,4]
[321063295,1711847993955,-500.0,0.00041369,4]
[321063296,1711847993981,-150.0,0.00041369,4]
[321063297,1711847994008,-500.0,0.00041369,4]
[321063298,1711847994034,-500.0,0.00041369,4]
[321063299,1711847994060,-500.0,0.00041369,4]
[321063300,1711847994085,-500.0,0.00041369,4]
[321063301,1711847994110,-500.0,0.00041369,4]
[321063302,1711847994135,-500.0,0.00041369,4]
[321063303,1711847994162,-500.0,0.00041369,4]
[321063304,1711847994187,-500.0,0.00041369,4]
[321063305,1711847994213,-500.0,0.00041369,4]
[321063306,1711847994240,-500.0,0.00041369,4]
[321063307,1711847994266,-500.0,0.00041369,4]
[321063308,1711847994291,-500.0,0.00041369,4]
[321063309,1711847994328,-500.0,0.00041369,4]
[321063310,1711847994362,-500.0,0.00041369,4]
[321063311,1711847994389,-500.0,0.00041369,4]
[321063312,1711847994415,-500.0,0.00041369,4]
[321063313,1711847994442,-500.0,0.00041369,4]
[321063314,1711847994468,-500.0,0.00041369,4]
[321063315,1711847994498,-500.0,0.00041369,4]
[321063316,1711847994525,-500.0,0.00041369,4]
[321063317,1711847994552,-492.74058587,0.00041369,4]
[321063318,1711847994579,-500.0,0.00041369,4]
[321063319,1711847994605,-2137.72,0.00041369,4]
[321063320,1711847994631,-500.0,0.00041369,4]
[321063321,1711847994657,-781.1,0.00041369,4]
[321063322,1711847994683,-431.67275145,0.00041369,4]
[321063323,1711847994708,-500.0,0.00041369,4]
[321063324,1711847994733,-1028.39,0.00041369,4]
[321063325,1711847994760,-500.0,0.00041369,4]
[321063326,1711847994785,-500.0,0.00041369,4]
[321063327,1711847994816,-500.0,0.00041369,4]
[321063328,1711847994843,-594.26,0.00041369,4]
[321063329,1711847994868,-500.0,0.00041369,4]
[321063330,1711847994895,-390.81109579,0.00041369,4]
[321063331,1711847994920,-500.0,0.00041369,4]
[321063332,1711847994949,-500.0,0.00041369,4]
[321063333,1711847995181,-231.86976413,0.00041369,4]
[321063334,1711847995211,-500.0,0.00041369,4]
[321063335,1711847995238,-652.45,0.00041369,4]
[321063336,1711847995266,-581.29,0.00041369,4]
[321063337,1711847995293,-500.0,0.00041369,4]
[321063338,1711847995330,-500.0,0.00041369,4]
[321063339,1711847995360,-500.0,0.00041369,4]
[321063340,1711847995388,-854.93,0.00041369,4]
[321063341,1711847995415,-619.56,0.00041369,4]
[321063342,1711847995444,-500.0,0.00041369,4]
[321063343,1711847995471,-1942.99,0.00041369,4]
[321063344,1711847995498,-500.0,0.00041369,4]
[321063345,1711847995525,-526.29,0.00041369,4]
[321063346,1711847995552,-8360.61,0.00041369,4]
[321063347,1711847995578,-299.21283199,0.00041369,4]
[321063348,1711847995604,-500.0,0.00041369,4]
[321063349,1711847995630,-2070.02,0.00041369,4]
[321063350,1711847995656,-500.0,0.00041369,4]
[321063351,1711847995687,-500.0,0.00041369,4]
[321063352,1711847995715,-500.0,0.00041369,4]
[321063353,1711847995742,-783.2,0.00041369,4]
[321063354,1711847995768,-500.0,0.00041369,4]
[321063355,1711847995799,-500.0,0.00041369,4]
[321063356,1711847995827,-500.0,0.00041369,4]
[321063357,1711847995854,-500.0,0.00041369,4]
[321063358,1711847995882,-5010.97,0.00041369,4]
[321063359,1711847995910,-500.0,0.00041369,4]
[321063360,1711847995937,-500.0,0.00041369,4]
[321063361,1711847995965,-355.44512332,0.00041369,4]
[321063362,1711847995992,-500.0,0.00041369,4]
[321063363,1711847996018,-1900.0,0.000414,15]
[321063364,1711847996045,-2100.0,0.0004141,14]
[321063365,1711847996072,-1025.273126,0.00041436,30]
[321063366,1711847996101,-150.0,0.00041467,120]
[321063367,1711847996129,-2900.0,0.000415,15]
[321063368,1711847996157,-1745.03,0.00041542,4]
[321063369,1711847996185,-1259.6,0.00041542,4]
[321063370,1711847996213,-500.0,0.00041542,4]
[321063371,1711847996240,-2370.37,0.00041542,4]
[321063372,1711847996267,-806.43,0.00041542,4]
[321063373,1711847996294,-1012.81,0.00041542,4]
[321063374,1711847996341,-500.0,0.00041542,4]
[321063375,1711847996369,-659.69,0.00041542,4]
[321063376,1711847996395,-500.0,0.00041542,4]
[321063377,1711847996423,-758.73,0.00041542,4]
[321063378,1711847996453,-2167.81,0.00041542,4]
[321063379,1711847996480,-703.53,0.00041542,4]
[321063380,1711847996509,-1086.48,0.00041542,4]
[321063381,1711847996537,-764.52,0.00041542,4]
[321063382,1711847996563,-2517.86,0.00041542,4]
[321063383,1711847996589,-2432.39,0.00041542,4]
[321063384,1711847996615,-622.27,0.00041542,4]
[321063385,1711847996642,-544.26,0.00041542,4]
[321063386,1711847996668,-1569.86,0.00041542,4]
[321063387,1711847996694,-500.0,0.00041542,4]
[321063388,1711847999744,-87.8617916,0.00041542,4]
[321063390,1711848022700,-366.48,0.0003814,2]
[321063391,1711848022729,-159.05,0.00040058,15]
[321063392,1711848022758,-366.48,0.00040404,2]
[321063393,1711848022785,-500.0,0.00041095,4]
[321063394,1711848022814,-716.01,0.00041268,4]
[321063395,1711848022842,-500.0,0.00041299,4]
[321063396,1711848022870,-737.08,0.00041299,4]
[321063397,1711848022899,-500.0,0.00041299,4]
[321063398,1711848022927,-500.0,0.00041299,4]
[321063399,1711848022955,-988.48,0.00041299,4]
[321063400,1711848022984,-500.0,0.00041299,4]
[321063401,1711848023012,-4491.83655519,0.00041367,2]
[321063402,1711848023039,-1154.63,0.00041367,4]
[321063403,1711848023068,-508.08,0.00041367,4]
[321063404,1711848023097,-643.76,0.00041367,4]
[321063405,1711848023124,-503.86,0.00041367,4]
[321063406,1711848023152,-2172.84,0.00041367,4]
[321063407,1711848023178,-739.23,0.00041367,4]
[321063408,1711848023205,-500.0,0.00041368,2]
[321063409,1711848023233,-1182.76,0.00041368,2]
[321063410,1711848023259,-500.0,0.00041369,2]
[321063411,1711848023287,-500.0,0.00041369,4]
[321063412,1711848023317,-7500.0,0.00041442,2]
[321063413,1711848023345,-595.7882084,0.00041542,4]
[321063414,1711848023373,-500.0,0.00041542,4]
[321063415,1711848023584,-844.77,0.00041542,4]
[321063416,1711848023628,-1343.18,0.00041542,4]
[321063417,1711848023656,-1450.91,0.00041542,4]
[321063418,1711848023683,-1955.43,0.00041542,4]
[321063419,1711848023709,-500.0,0.00041542,4]
[321063420,1711848023737,-1114.2,0.00041542,4]
[321063421,1711848023762,-3547.956,0.00041542,14]
[321063422,1711848023789,-716.01,0.00041542,4]
[321063423,1711848023816,-169.02386531,0.00041573,4]
[321063424,1711848023845,-500.0,0.00041573,4]
[321063425,1711848023872,-500.0,0.00041573,4]
[321063426,1711848023900,-950.07,0.00041573,4]
[321063427,1711848023927,-1058.94,0.00041573,4]
[321063428,1711848023955,-755.55,0.00041573,4]
[321063429,1711848023983,-565.3,0.00041573,4]
[321063430,1711848024012,-2201.72,0.00041573,4]
[321063431,1711848024040,-500.0,0.00041573,4]
[321063432,1711848024075,-2701.54,0.00041573,4]
[321063433,1711848024103,-500.0,0.00041573,4]
[321063434,1711848024130,-2149.69,0.00041573,4]
[321063435,1711848024158,-1100.03,0.00041573,4]
[321063436,1711848024184,-724.31,0.00041573,4]
[321063437,1711848024210,-1773.78,0.00041573,4]
[321063438,1711848024240,-500.0,0.00041573,4]
[321063439,1711848024267,-1515.82,0.00041573,4]
[321063440,1711848024294,-500.0,0.00041573,4]
[321063441,1711848024335,-500.0,0.00041573,4]
[321063442,1711848024362,-500.0,0.00041573,4]
[321063443,1711848024394,-500.0,0.00041573,4]
[321063444,1711848024422,-645.93,0.00041573,4]
[321063445,1711848024450,-500.0,0.00041573,4]
[321063446,1711848024478,-500.0,0.00041573,4]
[321063447,1711848024504,-500.0,0.00041573,4]
[321063448,1711848024532,-500.0,0.00041573,4]
[321063449,1711848024560,-2529.47,0.00041573,4]
[321063450,1711848024587,-598.59,0.00041573,4]
[321063451,1711848024614,-1600.97,0.00041573,4]
[321063452,1711848024640,-500.0,0.00041573,4]
[321063453,1711848024667,-500.0,0.00041573,4]
[321063454,1711848024694,-12902.29,0.00041573,4]
[321063455,1711848024722,-500.0,0.00041573,4]
[321063456,1711848024748,-1178.52,0.00041573,4]
[321063457,1711848024774,-675.67,0.00041573,2]
[321063458,1711848024800,-500.0,0.00041573,4]
[321063459,1711848024829,-500.0,0.00041573,4]
[321063460,1711848024856,-500.0,0.00041573,4]
[321063461,1711848024884,-525.76,0.00041573,4]
[321063462,1711848024911,-502.92,0.00041573,4]
[321063463,1711848024939,-500.0,0.00041573,4]
[321063464,1711848024967,-500.0,0.00041573,4]
[321063465,1711848024996,-1206.82,0.00041573,4]
[321063466,1711848025024,-1834.93,0.00041573,4]
[321063467,1711848025051,-500.0,0.00041573,4]
[321063468,1711848025078,-737.08,0.00041573,4]
[321063469,1711848025105,-500.0,0.00041573,4]
[321063470,1711848025133,-534.530001,0.00041573,4]
[321063471,1711848025170,-988.48,0.00041573,4]
[321063472,1711848025197,-355.39306195,0.00041573,4]
[321063473,1711848025227,-3800.0,0.000416,15]
[321063474,1711848025254,-2698.63,0.00041641,4]
[321063475,1711848025282,-500.0,0.00041641,4]
[321063476,1711848027115,-438.8446163,0.00041641,4]
[321063477,1711848040108,-1137.73,0.00041095,4]
[321063478,1711848040136,-942.69,0.00041268,4]
[321063479,1711848040162,-2473.75,0.00041299,4]
[321063480,1711848040188,-542.03,0.00041299,4]
[321063481,1711848040214,-692.59,0.00041367,4]
[321063482,1711848040243,-500.0,0.00041367,4]
[321063483,1711848040269,-970.69,0.00041367,4]
[321063484,1711848040294,-928.41,0.00041367,4]
[321063485,1711848040332,-2018.24,0.00041367,4]
[321063486,1711848040358,-1137.73,0.00041369,4]
[321063487,1711848040391,-942.69,0.00041542,4]
[321063488,1711848040418,-2473.75,0.00041573,4]
[321063489,1711848040448,-542.03,0.00041573,4]
[321063490,1711848040482,-2019.5053837,0.00041641,4]
[321063491,1711848040509,-560.22,0.00041641,4]
[321063492,1711848040535,-500.0,0.00041641,4]
[321063493,1711848040561,-2689.53,0.00041641,4]
[321063494,1711848040589,-500.0,0.00041641,4]
[321063495,1711848040617,-803.14,0.00041641,4]
[321063496,1711848040644,-3557.76,0.00041641,4]
[321063497,1711848040670,-3084.66,0.00041641,4]
[321063498,1711848040696,-500.0,0.00041641,4]
[321063499,1711848040722,-1726.56,0.00041641,4]
[321063500,1711848040751,-1312.7,0.00041641,4]
[321063501,1711848040778,-1587.52,0.00041641,4]
[321063502,1711848040806,-2462.82,0.00041641,4]
[321063503,1711848040833,-2541.96,0.00041641,4]
[321063504,1711848040859,-540.55,0.00041641,4]
[321063505,1711848040885,-932.96,0.00041641,4]
[321063506,1711848040911,-3729.42,0.00041641,4]
[321063507,1711848040937,-7924.04,0.00041641,4]
[321063508,1711848040964,-500.0,0.00041641,4]
[321063509,1711848040993,-1154.63,0.00041641,4]
[321063510,1711848041022,-508.08,0.00041641,4]
[321063511,1711848041049,-643.76,0.00041641,4]
[321063512,1711848041078,-2172.84,0.00041641,4]
[321063513,1711848041105,-739.23,0.00041641,4]
[321063514,1711848041132,-692.59,0.00041641,4]
[321063515,1711848041158,-500.0,0.00041641,4]
[321063516,1711848041184,-970.69,0.00041641,4]
[321063517,1711848041210,-928.41,0.00041641,4]
[321063518,1711848041239,-2018.24,0.00041641,4]
[321063519,1711848041454,-500.0,0.00041642,4]
[321063520,1711848041485,-326.01107847,0.00041642,4]
[321063521,1711848041511,-500.0,0.00041642,4]
[321063522,1711848041539,-500.0,0.00041642,4]
[321063523,1711848041566,-500.0,0.00041642,4]
[321063524,1711848041592,-549.26097362,0.00041642,4]
[321063525,1711848041618,-500.0,0.00041642,4]
[321063526,1711848041645,-500.0,0.00041642,4]
[321063527,1711848041673,-500.0,0.00041642,4]
[321063528,1711848041699,-547.20000191,0.00041642,4]
[321063529,1711848041724,-641.69,0.00041642,4]
[321063530,1711848041751,-500.0,0.00041642,4]
[321063531,1711848041776,-500.0,0.00041642,4]
[321063532,1711848041802,-500.0,0.00041642,4]
[321063533,1711848041828,-500.0,0.00041642,4]
[321063534,1711848041853,-500.0,0.00041642,4]
[321063535,1711848041880,-500.0,0.00041642,4]
[321063536,1711848041907,-500.0,0.00041642,4]
[321063537,1711848041933,-500.0,0.00041642,4]
[321063538,1711848041960,-500.0,0.00041642,4]
[321063539,1711848041987,-500.0,0.00041642,4]
[321063540,1711848042014,-500.0,0.00041642,4]
[321063541,1711848042042,-500.0,0.00041642,4]
[321063542,1711848042068,-500.0,0.00041642,4]
[321063543,1711848042095,-518.71,0.00041642,4]
[321063544,1711848042121,-500.0,0.00041642,4]
[321063545,1711848042148,-500.0,0.00041642,4]
[321063546,1711848042173,-853.58,0.00041642,4]
[321063547,1711848042199,-500.0,0.00041642,4]
[321063548,1711848042225,-992.15,0.00041642,4]
[321063549,1711848042253,-500.0,0.00041642,4]
[321063550,1711848042279,-500.0,0.00041642,4]
[321063551,1711848042306,-500.0,0.00041642,4]
[321063552,1711848042332,-500.0,0.00041642,4]
[321063553,1711848042359,-500.0,0.00041642,4]
[321063554,1711848042387,-500.0,0.00041642,4]
[321063555,1711848042414,-501.36677055,0.00041642,4]
[321063556,1711848042441,-500.0,0.00041642,4]
[321063557,1711848042469,-500.0,0.00041642,4]
[321063558,1711848042496,-500.0,0.00041642,4]
[321063559,1711848042525,-500.0,0.00041642,4]
[321063560,1711848042552,-500.0,0.00041642,4]
[321063561,1711848042579,-500.0,0.00041642,4]
[321063562,1711848042605,-500.0,0.00041642,4]
[321063563,1711848042631,-500.0,0.00041642,4]
[321063564,1711848042657,-500.0,0.00041642,4]
[321063565,1711848042683,-500.0,0.00041642,4]
[321063566,1711848042709,-500.0,0.00041642,4]
[321063567,1711848042736,-500.0,0.00041642,4]
[321063568,1711848042762,-500.0,0.00041642,4]
[321063569,1711848042788,-1182.76,0.00041642,2]
[321063570,1711848042814,-500.0,0.00041642,4]
[321063571,1711848042841,-542.74224731,0.00041642,4]
[321063572,1711848042867,-500.0,0.00041643,4]
[321063573,1711848042893,-500.0,0.00041643,4]
[321063574,1711848042919,-500.0,0.00041643,4]
[321063575,1711848042945,-500.0,0.00041643,4]
[321063576,1711848042970,-573.66266028,0.00041643,4]
[321063577,1711848042998,-500.0,0.00041643,4]
[321063578,1711848043025,-500.0,0.00041643,4]
[321063579,1711848043051,-500.0,0.00041643,4]
[321063580,1711848043079,-500.0,0.00041643,4]
[321063581,1711848043105,-427.84594541,0.00041643,4]
[321063582,1711848043130,-500.0,0.00041643,4]
[321063583,1711848043156,-500.0,0.00041643,4]
[321063584,1711848043181,-341.63655159,0.00041643,4]
[321063585,1711848043207,-500.0,0.00041643,4]
[321063586,1711848043234,-500.0,0.00041643,4]
[321063587,1711848043260,-500.0,0.00041643,4]
[321063588,1711848043286,-500.0,0.00041643,4]
[321063589,1711848043313,-294.47677432,0.00041643,4]
[321063590,1711848046188,-372.65321907,0.00041367,4]
[321063591,1711848054790,-2500.0,0.00041268,2]
[321063592,1711848054818,-500.0,0.00041268,4]
[321063593,1711848054845,-513.53,0.00041299,4]
[321063594,1711848054871,-500.0,0.00041299,4]
[321063595,1711848054898,-127.34678093,0.00041367,4]
[321063596,1711848054924,-518.19,0.00041367,4]
[321063597,1711848054951,-604.71,0.00041367,4]
[321063598,1711848054978,-500.0,0.00041367,4]
[321063599,1711848055006,-500.0,0.00041367,4]
[321063600,1711848055034,-2506.91,0.00041367,4]
[321063601,1711848055062,-7500.0,0.00041442,2]
[321063602,1711848055089,-500.0,0.00041542,4]
[321063603,1711848055117,-513.53,0.00041573,4]
[321063604,1711848055144,-500.0,0.00041573,4]
[321063605,1711848055170,-500.0,0.00041641,4]
[321063606,1711848055195,-518.19,0.00041641,4]
[321063607,1711848055222,-604.71,0.00041641,4]
[321063608,1711848055250,-500.0,0.00041641,4]
[321063609,1711848055277,-500.0,0.00041641,4]
[321063610,1711848055306,-205.52322568,0.00041643,4]
[321063611,1711848055332,-500.0,0.00041643,4]
[321063612,1711848055358,-500.0,0.00041643,4]
[321063613,1711848055386,-500.0,0.00041643,4]
[321063614,1711848055413,-500.0,0.00041643,4]
[321063615,1711848055439,-500.0,0.00041643,4]
[321063616,1711848055465,-500.0,0.00041643,4]
[321063617,1711848055492,-150.0,0.00041643,4]
[321063618,1711848055518,-500.0,0.00041643,4]
[321063619,1711848055544,-500.0,0.00041643,4]
[321063620,1711848055569,-579.29593446,0.00041643,4]
[321063621,1711848055596,-500.0,0.00041643,4]
[321063622,1711848055621,-500.0,0.00041643,4]
[321063623,1711848055646,-500.0,0.00041643,4]
[321063624,1711848055671,-500.0,0.00041643,4]
[321063625,1711848055697,-500.0,0.00041643,4]
[321063626,1711848055722,-500.0,0.00041643,4]
[321063627,1711848055748,-500.0,0.00041643,4]
[321063628,1711848055773,-500.0,0.00041643,4]
[321063629,1711848055799,-500.0,0.00041643,4]
[321063630,1711848055825,-500.0,0.00041643,4]
[321063631,1711848055850,-500.0,0.00041643,4]
[321063632,1711848055875,-306.81990664,0.00041643,4]
[321063633,1711848055901,-500.0,0.00041643,4]
[321063634,1711848055927,-485.33373104,0.00041643,4]
[321063635,1711848055958,-500.0,0.00041643,4]
[321063636,1711848055986,-500.0,0.00041643,4]
[321063637,1711848056014,-500.0,0.00041643,4]
[321063638,1711848056042,-500.0,0.00041643,4]
[321063639,1711848056071,-2137.72,0.00041643,4]
[321063640,1711848056098,-500.0,0.00041643,4]
[321063641,1711848056126,-500.0,0.00041643,4]
[321063642,1711848056153,-500.0,0.00041643,4]
[321063643,1711848056179,-381.06019071,0.00041643,4]
[321063644,1711848056206,-500.0,0.00041643,4]
[321063645,1711848056235,-500.0,0.00041643,4]
[321063646,1711848056263,-500.0,0.00041643,4]
[321063647,1711848056289,-534.76757624,0.00041643,4]
[321063648,1711848056315,-652.45,0.00041643,4]
[321063649,1711848056341,-581.29,0.00041643,4]
[321063650,1711848056368,-500.0,0.00041643,4]
[321063651,1711848056398,-500.0,0.00041643,4]
[321063652,1711848056425,-500.0,0.00041643,4]
[321063653,1711848056451,-854.93,0.00041643,4]
[321063654,1711848056479,-619.56,0.00041643,4]
[321063655,1711848056505,-500.0,0.00041643,4]
[321063656,1711848056532,-1942.99,0.00041643,4]
[321063657,1711848056558,-500.0,0.00041643,4]
[321063658,1711848056584,-526.29,0.00041643,4]
[321063659,1711848056611,-8360.61,0.00041643,4]
[321063660,1711848056637,-500.0,0.00041643,4]
[321063661,1711848056665,-2070.02,0.00041643,4]
[321063662,1711848056691,-500.0,0.00041643,4]
[321063663,1711848056717,-500.0,0.00041643,4]
[321063664,1711848056743,-500.0,0.00041643,4]
[321063665,1711848056770,-783.2,0.00041643,4]
[321063666,1711848056796,-500.0,0.00041643,4]
[321063667,1711848056822,-610.67,0.00041643,4]
[321063668,1711848056848,-237.88902721,0.00041643,4]
[321063669,1711848056874,-500.0,0.00041643,4]
[321063670,1711848056901,-5010.97,0.00041643,4]
[321063671,1711848056928,-500.0,0.00041643,4]
[321063672,1711848056955,-500.0,0.00041643,4]
[321063673,1711848056982,-500.0,0.00041643,4]
[321063674,1711848057009,-500.0,0.00041643,4]
[321063675,1711848057035,-1137.73,0.00041643,4]
[321063676,1711848057061,-505.0,0.00041644,7]
[321063677,1711848057086,-7155.0,0.00041675,3]
[321063678,1711848057289,-1945.92062995,0.00041696,16]
[321063679,1711848057315,-4800.0,0.000417,15]
[321063680,1711848057342,-166.99,0.00041708,2]
[321063681,1711848057370,-12276.36445104,0.00041718,2]
[321063682,1711848057399,-222.08948716,0.0004172,2]
[321063683,1711848057427,-933.3424502,0.00041723,2]
[321063684,1711848057453,-165.57413059,0.00041723,2]
[321063685,1711848059501,-1506.9649563,0.00041641,4]
[321063686,1711848072476,-161.80487482,0.00041168,2]
[321063687,1711848072505,-570.89,0.00041268,4]
[321063688,1711848072533,-2253.48,0.00041299,4]
[321063689,1711848072562,-500.0,0.00041299,4]
[321063690,1711848072588,-500.0,0.00041367,4]
[321063691,1711848072613,-1008.37,0.00041367,4]
[321063692,1711848072640,-500.0,0.00041367,4]
[321063693,1711848072666,-644.9,0.00041367,4]
[321063694,1711848072692,-500.0,0.00041367,4]
[321063695,1711848072719,-570.89,0.00041542,4]
[321063696,1711848072745,-2253.48,0.00041573,4]
[321063697,1711848072772,-500.0,0.00041573,4]
[321063698,1711848072798,-999.9450437,0.00041641,4]
[321063699,1711848072825,-500.0,0.00041641,4]
[321063700,1711848072852,-1008.37,0.00041641,4]
[321063701,1711848072879,-500.0,0.00041641,4]
[321063702,1711848072906,-644.9,0.00041641,4]
[321063703,1711848072933,-500.0,0.00041641,4]
[321063704,1711848072959,-21343.95223749,0.00041727,2]
[321063705,1711848072986,-165.57413059,0.00041727,2]
[321063706,1711848073013,-7402.93518931,0.00041727,2]
[321063707,1711848073485,-1625.97,0.00041367,4]
[321063708,1711848073495,-1625.97,0.00041641,4]
[321063709,1711848073505,-10689.07704818,0.00041727,2]
[321063710,1711848091462,-500.0,0.00041095,4]
[321063711,1711848091490,-500.0,0.00041095,4]
[321063712,1711848091518,-180.0,0.00041096,2]
[321063713,1711848091548,-508.63,0.00041268,4]
[321063714,1711848091578,-500.0,0.00041268,4]
[321063715,1711848091606,-1685.38,0.00041299,4]
[321063716,1711848091635,-500.0,0.00041299,4]
[321063717,1711848091664,-3261.28,0.00041299,4]
[321063718,1711848091693,-1970.55,0.00041367,4]
[321063719,1711848091723,-500.0,0.00041367,4]
[321063720,1711848091751,-1389.5,0.00041367,4]
[321063721,1711848091777,-663.95,0.00041367,4]
[321063722,1711848091805,-1874.06,0.00041367,4]
[321063723,1711848091832,-500.0,0.00041367,4]
[321063724,1711848091859,-500.0,0.00041369,4]
[321063725,1711848091886,-500.0,0.00041369,4]
[321063726,1711848091913,-508.63,0.00041542,4]
[321063727,1711848091939,-500.0,0.00041542,4]
[321063728,1711848091967,-1685.38,0.00041573,4]
[321063729,1711848091993,-362.95431483,0.00041573,4]
[321063730,1711848092020,-3261.28,0.00041573,4]
[321063731,1711848092047,-1970.55,0.00041641,4]
[321063732,1711848092074,-500.0,0.00041641,4]
[321063733,1711848092706,-995.94,0.00041367,4]
[321063734,1711848092716,-359.77137034,0.00041641,4]
[321063735,1711848099804,-542.12,0.00041268,4]
[321063736,1711848099833,-2827.6,0.00041299,4]
[321063737,1711848099862,-2308.04,0.00041367,4]
[321063738,1711848099888,-500.0,0.00041367,4]
[321063739,1711848099914,-500.0,0.00041367,4]
[321063740,1711848099940,-500.0,0.00041367,4]
[321063741,1711848099967,-542.12,0.00041542,4]
[321063742,1711848099994,-2827.6,0.00041573,4]
[321063743,1711848100023,-1029.72862966,0.00041641,4]
[321063744,1711848100051,-663.95,0.00041641,4]
[321063745,1711848100079,-1874.06,0.00041641,4]
[321063746,1711848100107,-500.0,0.00041641,4]
[321063747,1711848100134,-995.94,0.00041641,4]
[321063748,1711848100161,-2308.04,0.00041641,4]
[321063749,1711848100188,-500.0,0.00041641,4]
[321063750,1711848100214,-500.0,0.00041641,4]
[321063751,1711848100241,-500.0,0.00041643,4]
[321063752,1711848100267,-500.0,0.00041643,4]
[321063753,1711848100293,-2099.2720731,0.00041714,2]
[321063754,1711848100324,-2711.11859448,0.00041727,2]
[321063755,1711848100938,-500.0,0.00041367,4]
[321063756,1711848100948,-40.82140552,0.00041641,4]
[321063789,1711848616105,566.4308,0.00042015,30]
[321063791,1711848626052,289.0,0.00042015,120]
[321063809,1711848631582,-329.83,0.0003814,2]
[321063810,1711848631591,-784.93610056,0.0003849,5]
[321063811,1711848631602,-200.0,0.00040058,2]
[321063812,1711848631613,-269.34,0.00040058,2]
[321063813,1711848631623,-159.05,0.00040288,15]
[321063814,1711848631633,-563.52,0.00040288,2]
[321063815,1711848631643,-329.83,0.00040404,2]
[321063816,1711848631654,-334.019,0.00040681,2]
[321063817,1711848631665,-1953.3199802,0.00041,20]
[321063818,1711848631682,-1291.36512063,0.00041,20]
[321063819,1711848631691,-341.06550526,0.00041,10]
[321063820,1711848631795,-812.31537004,0.00041,10]
[321063828,1711848637605,-1322.52537598,0.00041,10]
[321063829,1711848637661,-733.01510074,0.00041,10]
[321063830,1711848637777,-1395.60818834,0.00041,10]